bitfinex/quotes_SOLUSD_20250811
["timestamp","ask_amount","ask_price","bid_price","bid_amount"]
[1754936129016,0.03,177.96,177.95,228.76621557]
[1754936129218,0.03,177.96,177.95,238.4332144]
[1754936130212,0.03,177.96,177.95,248.4332144]
[1754936130417,0.03,177.96,177.95,254.05277045]
[1754936130845,0.03,177.98,177.96,15.10621557]
[1754936131027,0.5,178.07,177.99,114.5232144]
[1754936131233,0.5,178.06,177.99,155.6232144]
[1754936131437,0.5,178.06,177.99,156.2832144]
[1754936131733,0.5,178.04,177.99,171.95621557]
[1754936132245,0.5,178.04,177.99,181.6232144]
[1754936132544,9.66699883,178.06,177.99,187.93150756]
[1754936132846,0.5,178.03,177.99,181.6232144]
[1754936133341,10.16699883,178.05,177.99,141.2132144]
[1754936133544,10.16699883,178.05,177.99,182.2932144]
[1754936133745,0.5,178.05,177.99,187.91150756]
[1754936134754,0.5,178.04,177.99,187.22150756]
[1754936135051,0.5,178.03,177.99,181.6032144]
[1754936135724,0.5,178.05,177.99,181.6032144]
[1754936135925,0.5,178.05,177.99,172.62621557]
[1754936136144,0.5,178.05,177.99,182.2932144]
[1754936136948,0.5,178.05,177.99,178.24450873]
[1754936137142,0.5,178.04,177.99,181.6032144]
[1754936137350,0.5,178.04,177.99,187.22150756]
[1754936137642,0.5,178.03,177.99,181.6032144]
[1754936138458,9.66699883,178.03,177.99,145.93621557]
[1754936138663,10.19699883,178.0,177.93,130.23]
[1754936138857,9.66699883,177.94,177.93,40.48]
[1754936139049,10.16699883,177.94,177.93,41.06]
[1754936139357,15.78687069,177.94,177.93,41.06]
[1754936139719,10.16699883,177.94,177.93,41.06]
[1754936141348,16.35149154,177.94,177.93,41.06]
[1754936143427,16.35149154,177.94,177.86,0.06]
[1754936143428,56.4011712,177.94,177.86,0.06]
[1754936143621,0.5,177.93,177.87,41.04]
[1754936144032,9.66699883,177.9,177.87,41.04]
[1754936144443,0.5,177.91,177.87,41.04]
[1754936144644,15.78661405,177.95,177.9,9.66699883]
[1754936144935,15.78661405,177.95,177.91,41.04]
[1754936145131,5.61930383,177.96,177.91,41.04]
[1754936145328,26.0,177.98,177.93,9.66699883]
[1754936145329,9.66699883,177.98,177.93,9.66699883]
[1754936145557,9.66699883,177.98,177.94,41.04]
[1754936145733,15.28529199,177.99,177.94,51.39699883]
[1754936146034,5.61829316,177.99,177.94,41.73]
[1754936146242,15.28529199,177.99,177.94,51.39699883]
[1754936146443,0.59462085,178.0,177.96,9.66699883]
[1754936146744,0.59462085,178.0,177.97,41.04]
[1754936147554,6.21263625,178.0,177.97,41.04]
[1754936147743,15.87963508,178.0,177.97,41.04]
[1754936147959,6.21263625,178.0,177.97,41.04]
[1754936149574,15.87963508,178.0,177.97,41.04]
[1754936150877,9.66699883,177.98,177.92,15.10621557]
[1754936151180,9.66699883,177.96,177.93,41.02]
[1754936151345,9.66699883,177.97,177.93,41.71]
[1754936151546,0.56462085,177.98,177.93,51.37699883]
[1754936151744,9.66699883,177.97,177.93,51.37699883]
[1754936151953,9.66699883,177.97,177.93,131.61]
[1754936152282,9.66699883,177.98,177.93,131.61]
[1754936152570,9.66699883,177.98,177.93,141.27699883]
[1754936152771,9.66699883,177.98,177.94,0.69]
[1754936152953,9.66699883,177.97,177.95,41.02]
[1754936153149,10.16699883,177.96,177.93,89.9]
[1754936153468,9.66699883,177.95,177.94,41.02]
[1754936153655,0.5,177.95,177.94,41.02]
[1754936153976,10.16699883,177.95,177.94,41.02]
[1754936154346,0.5,177.95,177.94,41.02]
[1754936154554,10.16699883,177.95,177.94,41.02]
[1754936155049,15.78655488,177.95,177.94,41.02]
[1754936155469,15.78655488,177.95,177.93,41.02]
[1754936155777,10.73161968,177.94,177.93,41.02]
[1754936156359,16.35149154,177.94,177.93,41.02]
[1754936156660,9.66699883,177.94,177.93,41.02]
[1754936157687,9.66699883,177.96,177.93,41.71]
[1754936157982,0.56462085,177.98,177.93,41.71]
[1754936158176,9.66699883,177.96,177.93,41.71]
[1754936159295,9.66699883,177.97,177.94,0.69]
[1754936159602,5.61832996,177.99,177.95,10.35699883]
[1754936159770,15.31507274,178.0,177.96,41.69]
[1754936159973,9.66699883,177.98,177.96,41.0]
[1754936160677,15.78592336,177.97,177.94,89.9]
[1754936160908,9.66699883,177.95,177.94,89.9]
[1754936161099,0.56462085,177.96,177.94,130.9]
[1754936161100,9.66699883,177.96,177.94,130.9]
[1754936161303,9.66699883,177.95,177.94,130.9]
[1754936161482,5.61892453,177.97,177.94,130.9]
[1754936161791,9.66699883,177.95,177.94,130.9]
[1754936161990,9.66699883,177.95,177.94,41.0]
[1754936162585,41.28592336,177.97,177.94,41.06]
[1754936163196,9.66699883,177.96,177.94,41.06]
[1754936163389,9.66699883,177.95,177.94,41.06]
[1754936163799,10.23161968,177.95,177.94,41.06]
[1754936163979,0.56462085,177.96,177.94,41.06]
[1754936164180,9.66699883,177.95,177.94,41.06]
[1754936164591,15.28655488,177.95,177.94,41.06]
[1754936164896,15.78655488,177.95,177.94,41.06]
[1754936165972,15.28655488,177.95,177.94,41.06]
[1754936167009,5.61955605,177.95,177.94,41.06]
[1754936167304,15.28655488,177.95,177.94,41.06]
[1754936167603,5.61955605,177.95,177.94,41.06]
[1754936167807,15.28655488,177.95,177.94,41.06]
[1754936168206,5.61955605,177.95,177.94,41.06]
[1754936168396,9.66699883,177.95,177.94,41.75]
[1754936168881,5.619346,177.96,177.94,41.06]
[1754936169082,15.28655488,177.95,177.94,41.06]
[1754936169279,15.28655488,177.95,177.94,41.75]
[1754936169280,9.66699883,177.95,177.94,41.75]
[1754936169889,9.66699883,177.95,177.94,41.06]
[1754936170695,9.66699883,177.95,177.94,0.06]
[1754936170696,10.16699883,177.95,177.94,0.06]
[1754936171093,15.78655488,177.95,177.94,0.06]
[1754936171295,26.0,177.95,177.94,0.06]
[1754936171587,35.66699883,177.95,177.94,0.06]
[1754936171809,36.16699883,177.95,177.94,0.06]
[1754936172990,6.11955605,177.95,177.94,0.06]
[1754936173289,31.61955605,177.95,177.94,0.06]
[1754936173499,15.28655488,177.95,177.94,0.06]
[1754936173701,15.78655488,177.95,177.92,0.06]
[1754936173914,35.66699883,177.93,177.9,0.06]
[1754936174094,9.66699883,177.91,177.9,0.06]
[1754936174584,10.16699883,177.91,177.89,0.06]
[1754936174782,36.73161968,177.9,177.89,0.06]
[1754936175308,42.35275514,177.9,177.89,0.06]
[1754936175603,41.85275514,177.9,177.89,0.06]
[1754936177201,32.18575631,177.9,177.89,0.06]
[1754936177404,41.85275514,177.9,177.89,0.06]
[1754936177695,15.28813429,177.9,177.89,0.75]
[1754936177899,0.56462085,177.92,177.89,0.75]
[1754936178120,0.56462085,177.95,177.89,0.75]
[1754936178329,9.66699883,177.92,177.89,0.75]
[1754936178622,9.66699883,177.91,177.89,0.75]
[1754936178822,6.1841769,177.95,177.89,0.75]
[1754936178994,9.66699883,177.91,177.89,0.75]
[1754936179497,9.66699883,177.91,177.9,0.69]
[1754936179718,9.66699883,177.92,177.9,0.69]
[1754936180186,9.66699883,177.92,177.89,89.96]
[1754936180386,9.66699883,177.92,177.91,0.69]
[1754936180992,5.62027702,177.93,177.91,0.69]
[1754936181320,15.28690389,177.94,177.92,41.71]
[1754936181628,15.28690389,177.94,177.92,41.02]
[1754936181629,9.66699883,177.93,177.92,41.02]
[1754936181791,36.73161968,177.93,177.89,0.06]
[1754936181989,9.66699883,177.9,177.89,0.06]
[1754936183122,15.28813429,177.9,177.89,0.75]
[1754936183621,9.66699883,177.9,177.89,0.75]
[1754936183832,9.66699883,177.93,177.89,0.75]
[1754936184331,5.61987186,177.94,177.89,0.75]
[1754936184518,0.56462085,177.95,177.9,9.66699883]
[1754936184519,6.18424993,177.95,177.9,9.66699883]
[1754936184711,10.23161968,177.95,177.91,41.89]
[1754936185029,10.23161968,177.95,177.92,0.69]
[1754936185206,15.85127917,177.95,177.91,41.2]
[1754936185551,14.57543837,178.0,177.95,15.10621557]
[1754936185552,0.03,178.0,177.95,15.10621557]
[1754936185731,0.03,178.0,177.96,41.95]
[1754936186025,9.66699883,177.98,177.96,41.26]
[1754936186242,9.66699883,177.98,177.96,41.95]
[1754936187020,9.66699883,177.98,177.93,9.66699883]
[1754936187205,0.59462085,178.0,177.94,41.95]
[1754936187404,9.66699883,177.99,177.94,51.61699883]
[1754936187619,9.66699883,177.97,177.95,0.69]
[1754936187927,10.23161968,177.96,177.95,41.24]
[1754936188233,9.66699883,177.96,177.95,41.24]
[1754936188432,1.06462085,177.99,177.95,41.24]
[1754936188593,9.66699883,177.96,177.95,41.24]
[1754936188799,19.83399766,177.96,177.89,0.06]
[1754936189036,19.83399766,177.96,177.9,41.24]
[1754936189037,0.56462085,177.95,177.9,41.24]
[1754936189235,15.28781834,177.91,177.9,41.24]
[1754936189653,5.62081951,177.91,177.9,41.24]
[1754936189841,15.28781834,177.91,177.9,41.24]
[1754936190022,15.28781834,177.91,177.9,41.93]
[1754936191119,15.28781834,177.91,177.9,41.24]
[1754936191651,14.04980771,177.94,177.9,41.93]
[1754936191652,26.0,177.94,177.9,41.93]
[1754936191827,26.0,177.94,177.91,0.69]
[1754936192142,9.66699883,177.92,177.91,0.69]
[1754936192455,6.18386112,177.96,177.91,0.69]
[1754936192633,6.18386112,177.96,177.92,0.71]
[1754936192634,0.56462085,177.95,177.92,0.71]
[1754936192950,9.66699883,177.93,177.91,89.9]
[1754936193116,0.56462085,177.95,177.92,41.2]
[1754936193318,5.61987186,177.94,177.92,41.2]
[1754936193643,5.61924027,177.96,177.92,41.2]
[1754936193872,0.56462085,177.97,177.93,0.71]
[1754936194153,9.66699883,177.94,177.93,0.71]
[1754936194456,6.18358797,177.97,177.93,0.71]
[1754936194652,6.18358797,177.97,177.94,0.71]
[1754936194957,6.18358797,177.97,177.95,41.18]
[1754936195834,6.68358797,177.97,177.95,41.18]
[1754936196139,9.66699883,177.96,177.95,41.18]
[1754936196542,19.83399766,177.96,177.92,89.9]
[1754936196746,9.66699883,177.93,177.92,41.16]
[1754936196967,35.66699883,177.93,177.92,41.16]
[1754936197343,41.28718654,177.93,177.92,41.16]
[1754936198173,55.83765582,177.93,177.89,0.06]
[1754936198332,9.66699883,177.9,177.89,0.06]
[1754936199275,36.16699883,177.9,177.89,1e-08]
[1754936199441,41.78813429,177.9,177.89,1e-08]
[1754936201846,15.78813429,177.9,177.89,1e-08]
[1754936202267,15.28813429,177.9,177.89,1e-08]
[1754936203661,41.28813429,177.9,177.89,1e-08]
[1754936204360,15.28813429,177.9,177.89,1e-08]
[1754936204751,15.78813429,177.9,177.89,1e-08]
[1754936205263,41.78813429,177.9,177.89,1e-08]
[1754936205568,15.78813429,177.9,177.89,1e-08]
[1754936205771,26.0,177.88,177.87,0.06]
[1754936206082,36.23161968,177.88,177.87,0.06]
[1754936206586,36.73161968,177.88,177.86,0.06]
[1754936206874,36.73161968,177.88,177.85,0.06]
[1754936206875,35.66699883,177.86,177.85,0.06]
[1754936207074,36.23161968,177.86,177.85,0.06]
[1754936207683,41.85401932,177.86,177.85,1e-08]
[1754936207882,41.85401932,177.86,177.83,1e-08]
[1754936207883,52.02101815,177.86,177.83,1e-08]
[1754936208091,9.66699883,177.84,177.83,1e-08]
[1754936208287,10.23161968,177.84,177.83,0.71000001]
[1754936208669,10.23161968,177.84,177.83,1e-08]
[1754936209265,15.85465161,177.84,177.83,1e-08]
[1754936209690,15.85465161,177.84,177.83,0.71000001]
[1754936210194,9.66699883,177.84,177.83,0.71000001]
[1754936210590,10.23161968,177.84,177.83,1e-08]
[1754936211169,15.85465161,177.84,177.83,0.71000001]
[1754936211489,26.0,177.87,177.83,0.71000001]
[1754936211490,0.56462085,177.87,177.83,0.71000001]
[1754936211828,9.66699883,177.87,177.83,0.71000001]
[1754936211973,26.0,177.88,177.83,0.71000001]
[1754936212297,9.66699883,177.87,177.83,0.71000001]
[1754936212588,9.66699883,177.84,177.83,1e-08]
[1754936213113,9.66699883,177.84,177.83,0.71000001]
[1754936213269,15.29003076,177.84,177.83,0.71000001]
[1754936213789,0.56462085,177.88,177.83,0.71000001]
[1754936213987,15.28914216,177.87,177.83,0.71000001]
[1754936214194,9.66699883,177.86,177.83,0.71000001]
[1754936214800,26.0,177.89,177.85,9.66699883]
[1754936214985,9.66699883,177.89,177.86,0.71]
[1754936215171,15.28823864,177.9,177.87,41.0]
[1754936215371,5.62123981,177.9,177.88,0.71]
[1754936215597,15.28823864,177.9,177.88,0.71]
[1754936215796,15.28823864,177.9,177.89,0.71]
[1754936218403,15.28823864,177.9,177.87,41.0]
[1754936218603,9.66699883,177.89,177.87,41.0]
[1754936218787,9.66699883,177.89,177.88,0.71]
[1754936219489,15.28823864,177.9,177.88,0.71]
[1754936219911,15.28823864,177.9,177.89,0.71]
[1754936220282,15.28823864,177.9,177.87,41.71]
[1754936220488,9.66699883,177.88,177.87,41.71]
[1754936220689,9.66699883,177.88,177.87,41.0]
[1754936221514,15.28876631,177.88,177.87,41.71]
[1754936222592,5.62176748,177.88,177.87,41.71]
[1754936222783,14.08241055,177.91,177.87,41.71]
[1754936222784,9.69699883,177.91,177.87,41.71]
[1754936222995,0.03,177.91,177.88,10.37699883]
[1754936223210,0.03,177.91,177.89,0.71]
[1754936223621,9.66699883,177.9,177.87,130.9]
[1754936223817,9.66699883,177.89,177.87,131.61]
[1754936224004,9.66699883,177.9,177.88,0.71]
[1754936224194,9.69699883,177.91,177.88,0.71]
[1754936225231,15.31794045,177.91,177.87,130.9]
[1754936225403,15.31794045,177.91,177.89,0.71]
[1754936225708,15.31794045,177.91,177.9,0.71]
[1754936226217,15.31794045,177.91,177.9,41.71]
[1754936226840,0.03,177.91,177.9,41.71]
[1754936227498,9.69699883,177.91,177.9,41.0]
[1754936227809,9.69699883,177.91,177.9,40.98]
[1754936228833,15.31781834,177.91,177.9,40.98]
[1754936230705,15.31781834,177.91,177.88,0.71]
[1754936231028,9.66699883,177.89,177.88,0.71]
[1754936231222,9.66699883,177.89,177.88,41.69]
[1754936231609,5.65081951,177.91,177.83,1e-08]
[1754936231837,9.66699883,177.84,177.83,1e-08]
[1754936232125,9.66699883,177.84,177.83,41.69000001]
[1754936232728,15.29003076,177.84,177.83,1e-08]
[1754936233032,5.62303193,177.84,177.83,40.98000001]
[1754936233209,15.29003076,177.84,177.83,41.69000001]
[1754936233413,15.29003076,177.84,177.83,40.98000001]
[1754936235003,15.29003076,177.84,177.83,1e-08]
[1754936235207,26.02165044,177.84,177.83,1e-08]
[1754936235831,52.02165044,177.84,177.81,1e-08]
[1754936236009,35.66699883,177.82,177.77,0.06]
[1754936236198,9.66699883,177.79,177.77,0.06]
[1754936236402,26.56462085,177.81,177.76,0.06]
[1754936236403,10.73161968,177.78,177.76,0.06]
[1754936236603,35.66699883,177.77,177.74,0.06]
[1754936236817,15.85718223,177.76,177.75,1e-08]
[1754936237029,16.35718223,177.76,177.75,1e-08]
[1754936238443,15.85718223,177.76,177.75,1e-08]
[1754936241439,15.85718223,177.76,177.75,0.71000001]
[1754936242309,15.85718223,177.76,177.75,1e-08]
[1754936243514,16.35718223,177.76,177.75,1e-08]
[1754936247220,26.0,177.74,177.73,1e-08]
[1754936247453,35.66699883,177.74,177.73,1e-08]
[1754936247619,36.73161968,177.74,177.73,1e-08]
[1754936248238,36.23161968,177.74,177.73,1e-08]
[1754936248440,36.73161968,177.74,177.73,1e-08]
[1754936248643,36.73161968,177.74,177.71,0.2]
[1754936248644,19.33399766,177.72,177.71,1e-08]
[1754936248950,25.52544722,177.72,177.71,1e-08]
[1754936249820,15.85844839,177.72,177.71,1e-08]
[1754936251435,15.85844839,177.72,177.71,0.71000001]
[1754936251436,6.19144956,177.72,177.71,0.71000001]
[1754936251623,5.62682871,177.72,177.71,0.71000001]
[1754936251822,15.29382754,177.72,177.71,0.71000001]
[1754936252344,15.29382754,177.72,177.71,1e-08]
[1754936253122,50.96082637,177.72,177.71,1e-08]
[1754936253634,51.52544722,177.72,177.71,1e-08]
[1754936254524,50.96082637,177.72,177.71,1e-08]
[1754936255421,41.29382754,177.72,177.71,1e-08]
[1754936255626,31.62682871,177.72,177.71,0.68000001]
[1754936255833,41.29382754,177.72,177.71,0.68000001]
[1754936256047,41.29382754,177.72,177.71,1e-08]
[1754936259142,50.96082637,177.72,177.71,1e-08]
[1754936259447,41.85844839,177.72,177.71,1e-08]
[1754936259829,52.02544722,177.72,177.71,1e-08]
[1754936260246,26.02544722,177.72,177.71,1e-08]
[1754936260434,25.46082637,177.72,177.71,1e-08]
[1754936261261,51.46082637,177.72,177.71,1e-08]
[1754936261428,25.46082637,177.72,177.71,1e-08]
[1754936261629,51.46082637,177.72,177.71,1e-08]
[1754936261854,24.96082637,177.72,177.71,1e-08]
[1754936262359,41.29382754,177.72,177.71,1e-08]
[1754936262659,15.29382754,177.72,177.71,1e-08]
[1754936262834,25.46082637,177.72,177.71,1e-08]
[1754936263954,26.0,177.69,177.67,0.06]
[1754936264149,10.23161968,177.68,177.67,1e-08]
[1754936265154,26.0,177.66,177.65,1e-08]
[1754936265466,35.66699883,177.66,177.65,1e-08]
[1754936266340,35.66699883,177.66,177.64,0.2]
[1754936266341,35.66699883,177.66,177.64,1e-08]
[1754936266655,35.66699883,177.66,177.59,40.98]
[1754936266656,36.73161968,177.65,177.52,17.36132557]
[1754936266886,36.73161968,177.65,177.58,0.68]
[1754936266887,26.0,177.63,177.58,0.68]
[1754936267033,26.0,177.63,177.54,40.98]
[1754936267034,19.70942673,177.58,177.54,40.98]
[1754936267356,9.66699883,177.57,177.54,40.98]
[1754936267854,15.29826361,177.58,177.54,40.98]
[1754936268058,5.63126478,177.58,177.54,40.98]
[1754936268272,9.66699883,177.57,177.54,40.98]
[1754936268450,9.66699883,177.58,177.54,40.98]
[1754936268652,5.6303136,177.61,177.54,50.64699883]
[1754936268858,9.66699883,177.59,177.54,50.64699883]
[1754936269166,15.29841705,177.58,177.55,0.68]
[1754936269667,9.66699883,177.59,177.55,0.68]
[1754936269873,15.29763617,177.6,177.55,0.68]
[1754936270081,5.63039242,177.61,177.55,10.34699883]
[1754936270271,9.66699883,177.59,177.56,0.68]
[1754936270476,5.63039242,177.61,177.56,0.68]
[1754936270769,9.66699883,177.57,177.56,0.68]
[1754936271076,5.63189907,177.56,177.54,0.68]
[1754936271246,9.66699883,177.55,177.54,0.68]
[1754936271444,9.66699883,177.55,177.53,41.0]
[1754936271843,9.66699883,177.54,177.51,15.10621557]
[1754936272047,9.66699883,177.54,177.52,40.98]
[1754936272359,9.66699883,177.56,177.52,40.98]
[1754936272562,9.66699883,177.56,177.53,0.68]
[1754936272776,9.66699883,177.55,177.53,0.68]
[1754936273157,9.66699883,177.55,177.52,40.98]
[1754936273158,9.66699883,177.54,177.52,40.98]
[1754936273759,9.66699883,177.54,177.53,0.68]
[1754936274278,9.66699883,177.56,177.53,0.68]
[1754936275253,9.66699883,177.57,177.53,0.68]
[1754936275454,9.66699883,177.56,177.53,0.68]
[1754936275778,9.66699883,177.55,177.54,0.68]
[1754936275946,9.66699883,177.56,177.54,0.68]
[1754936276151,9.66699883,177.56,177.55,0.68]
[1754936276362,9.66699883,177.56,177.52,40.98]
[1754936276659,9.66699883,177.55,177.53,0.68]
[1754936276859,6.19593919,177.58,177.52,40.98]
[1754936277152,9.66699883,177.55,177.54,0.68]
[1754936277351,15.2992151,177.55,177.54,0.68]
[1754936278278,15.2992151,177.55,177.52,40.98]
[1754936278279,11.69436044,177.55,177.52,40.98]
[1754936278456,6.06214417,177.53,177.52,40.98]
[1754936279389,6.06214417,177.53,177.52,41.66]
[1754936279563,11.69478103,177.54,177.52,41.66]
[1754936279760,6.06214417,177.53,177.5,40.54]
[1754936279968,6.06214417,177.51,177.5,0.68]
[1754936280163,6.06214417,177.51,177.5,40.98]
[1754936280374,26.0,177.56,177.5,47.72214417]
[1754936280576,26.0,177.56,177.51,6.74214417]
[1754936280875,6.06214417,177.57,177.52,0.68]
[1754936281079,6.06214417,177.56,177.52,0.68]
[1754936281371,6.06214417,177.57,177.52,0.68]
[1754936281574,6.06214417,177.56,177.52,0.68]
[1754936281767,6.06214417,177.55,177.53,0.68]
[1754936281960,0.69,177.56,177.54,40.98]
[1754936282162,6.06214417,177.55,177.54,40.98]
[1754936282556,6.06214417,177.55,177.51,0.68]
[1754936282755,0.56462085,177.55,177.52,40.98]
[1754936282974,0.71,177.54,177.52,40.98]
[1754936283357,45.70951247,177.58,177.52,40.98]
[1754936283358,6.90747163,177.53,177.52,40.98]
[1754936283776,11.69499495,177.53,177.52,40.98]
[1754936284286,0.56462085,177.59,177.52,51.39154747]
[1754936284485,6.34063063,177.6,177.55,9.70154747]
[1754936284486,15.89679895,177.6,177.55,9.70154747]
[1754936284667,15.89679895,177.6,177.56,41.69]
[1754936284867,35.70154747,177.58,177.57,40.98]
[1754936285461,41.33281225,177.58,177.57,40.98]
[1754936285862,26.0,177.58,177.57,40.98]
[1754936286168,26.0,177.58,177.57,41.69]
[1754936288318,0.59462085,177.62,177.57,51.39154747]
[1754936288482,0.03,177.62,177.59,9.70154747]
[1754936288792,0.03,177.62,177.6,25.51776304]
[1754936289769,0.03,177.62,177.61,41.69]
[1754936290198,0.03,177.62,177.61,66.49776304]
[1754936292831,0.03,177.62,177.61,98.12807664]
[1754936294335,0.03,177.62,177.61,98.82807664]
[1754936296305,0.03,177.64,177.63,41.10621557]
[1754936296507,0.03,177.64,177.63,97.96041067]
[1754936296834,0.03,177.64,177.63,98.67041067]
[1754936298840,0.03,177.64,177.63,188.57041067]
[1754936299008,0.03,177.64,177.63,188.00744271]
[1754936299808,0.03,177.64,177.63,147.04744271]
[1754936300136,0.03,177.64,177.63,181.64776304]
[1754936300749,0.03,177.64,177.63,91.74776304]
[1754936301029,0.74,177.64,177.63,40.94]
[1754936301218,10.44154747,177.64,177.63,40.94]
[1754936302820,16.07091022,177.64,177.57,15.10621557]
[1754936303020,9.70154747,177.61,177.58,40.94]
[1754936303213,9.70154747,177.62,177.58,41.65]
[1754936303434,10.41154747,177.61,177.58,40.94]
[1754936303651,0.71,177.6,177.54,15.10621557]
[1754936303812,10.41154747,177.6,177.55,50.64154747]
[1754936304023,9.70154747,177.6,177.57,15.10621557]
[1754936304326,9.70154747,177.6,177.58,40.94]
[1754936304848,0.03,177.64,177.6,15.10621557]
[1754936305152,0.03,177.64,177.61,50.62154747]
[1754936305738,0.03,177.64,177.61,41.63]
[1754936306035,9.70154747,177.62,177.58,15.10621557]
[1754936306238,9.70154747,177.59,177.56,15.10621557]
[1754936306447,0.74,177.64,177.58,15.10621557]
[1754936306624,0.74,177.64,177.59,40.92]
[1754936306941,9.70154747,177.61,177.59,40.92]
[1754936307141,9.70154747,177.6,177.59,40.92]
[1754936307314,9.70154747,177.6,177.58,15.10621557]
[1754936307315,10.41154747,177.61,177.56,15.10621557]
[1754936307638,10.41154747,177.61,177.58,15.10621557]
[1754936307833,9.70154747,177.6,177.59,40.92]
[1754936309129,9.70154747,177.61,177.59,40.92]
[1754936309463,9.73154747,177.64,177.6,15.81621557]
[1754936309615,0.03,177.64,177.61,40.92]
[1754936309934,10.41154747,177.63,177.61,40.92]
[1754936310839,0.71,177.63,177.61,40.92]
[1754936311047,9.70154747,177.63,177.61,40.92]
[1754936311215,9.73154747,177.64,177.61,41.63]
[1754936312122,0.03,177.64,177.61,41.63]
[1754936312324,0.03,177.64,177.62,0.71]
[1754936312539,0.03,177.64,177.63,40.92]
[1754936312736,0.03,177.64,177.63,41.62]
[1754936312941,0.03,177.64,177.63,156.32776304]
[1754936313242,0.03,177.64,177.63,66.42776304]
[1754936313445,0.03,177.64,177.63,56.72621557]
[1754936313653,0.03,177.64,177.63,66.42776304]
[1754936313946,0.03,177.64,177.63,72.05744271]
[1754936314127,0.03,177.64,177.63,66.42776304]
[1754936315920,0.03,177.64,177.63,40.92]
[1754936316119,0.03,177.64,177.63,56.02621557]
[1754936316329,0.03,177.64,177.63,66.42776304]
[1754936316922,0.03,177.64,177.63,72.05744271]
[1754936317333,0.03,177.64,177.63,74.31153571]
[1754936317536,0.03,177.64,177.63,164.21153571]
[1754936318548,0.03,177.64,177.63,164.91153571]
[1754936319122,0.03,177.64,177.63,164.21153571]
[1754936319325,0.03,177.64,177.63,190.21153571]
[1754936319820,0.03,177.64,177.63,164.21153571]
[1754936320434,0.03,177.66,177.65,46.73526144]
[1754936320633,0.03,177.66,177.65,187.79971349]
[1754936320849,0.03,177.66,177.65,187.93680891]
[1754936321549,0.03,177.66,177.65,161.93680891]
[1754936322334,0.03,177.68,177.67,41.10621557]
[1754936322533,0.03,177.7,177.69,20.73399428]
[1754936322738,0.03,177.7,177.69,187.79831962]
[1754936322942,0.03,177.7,177.69,187.93554175]
[1754936323345,0.03,177.7,177.69,190.18861875]
[1754936324132,0.03,177.7,177.69,207.07861875]
[1754936324334,0.03,177.7,177.69,190.88861875]
[1754936325755,0.03,177.76,177.75,15.10621557]
[1754936325965,0.69,177.75,177.72,15.10621557]
[1754936326137,0.03,177.76,177.74,15.10621557]
[1754936326337,0.03,177.76,177.75,40.88]
[1754936327351,0.03,177.76,177.71,5.62706735]
[1754936327352,10.42154747,177.76,177.71,15.10621557]
[1754936327665,0.69,177.75,177.72,40.86]
[1754936327956,0.69,177.74,177.72,40.86]
[1754936328331,0.03,177.76,177.73,15.10621557]
[1754936328660,0.03,177.76,177.74,40.86]
[1754936329470,0.03,177.76,177.75,15.10621557]
[1754936329685,0.03,177.76,177.75,52.07035094]
[1754936329834,0.03,177.76,177.75,51.50776304]
[1754936330355,0.03,177.76,177.75,52.07035094]
[1754936330863,0.03,177.76,177.75,15.10621557]
[1754936331044,0.72,177.76,177.75,55.96621557]
[1754936331241,0.72,177.76,177.75,71.99364208]
[1754936331242,1e-08,177.76,177.75,71.99364208]
[1754936331836,1e-08,177.76,177.75,97.99364208]
[1754936332244,1e-08,177.76,177.75,98.55622998]
[1754936332433,1e-08,177.76,177.75,188.45622998]
[1754936332637,1e-08,177.76,177.75,187.89364208]
[1754936337478,1e-08,177.76,177.75,161.89364208]